[Event "*** Titled Tuesday Blitz"]
[Site "Chess.com"]
[Date "2020.11.03"]
[Round "3"]
[White "ChelsieMonica"]
[Black "DonBroca"]
[Result "0-1"]
[WhiteElo "2313"]
[BlackElo "2095"]
[TimeControl "180+1"]
[EndTime "10:32:12 PST"]
[Termination "DonBroca won on time"]

1. c4 {[%clk 0:03:00.9]} 1... Nf6 {[%clk 0:02:53.6]} 2. Nc3 {[%clk 0:02:59.3]}
2... d6 {[%clk 0:02:50.3]} 3. Nf3 {[%clk 0:02:54.9]} 3... g6 {[%clk 0:02:51.2]}
4. d4 {[%clk 0:02:52.3]} 4... Bg7 {[%clk 0:02:47.3]} 5. e3 {[%clk 0:02:51]} 5...
O-O {[%clk 0:02:47.8]} 6. Be2 {[%clk 0:02:51.9]} 6... Nbd7 {[%clk 0:02:46.2]} 7.
h3 {[%clk 0:02:52.8]} 7... e5 {[%clk 0:02:45.7]} 8. dxe5 {[%clk 0:02:53.1]} 8...
dxe5 {[%clk 0:02:46.6]} 9. e4 {[%clk 0:02:52.5]} 9... c6 {[%clk 0:02:46.5]} 10.
O-O {[%clk 0:02:50.2]} 10... Qc7 {[%clk 0:02:46.1]} 11. Be3 {[%clk 0:02:18.8]}
11... Nh5 {[%clk 0:02:42.7]} 12. Qc2 {[%clk 0:02:13.7]} 12... Nf4 {[%clk
0:02:40.1]} 13. Bxf4 {[%clk 0:02:12.7]} 13... exf4 {[%clk 0:02:39.4]} 14. Rad1
{[%clk 0:02:12.4]} 14... h6 {[%clk 0:02:32.4]} 15. Rd2 {[%clk 0:02:11.3]} 15...
Ne5 {[%clk 0:02:24.1]} 16. Nxe5 {[%clk 0:02:09.9]} 16... Bxe5 {[%clk 0:02:18]}
17. Bf3 {[%clk 0:02:09.1]} 17... Be6 {[%clk 0:02:16.5]} 18. b3 {[%clk
0:02:06.5]} 18... Rfd8 {[%clk 0:02:14.1]} 19. Rfd1 {[%clk 0:02:05.9]} 19... Kg7
{[%clk 0:02:10.6]} 20. Ne2 {[%clk 0:02:04.6]} 20... a5 {[%clk 0:01:47.3]} 21. a4
{[%clk 0:02:02.6]} 21... Qb6 {[%clk 0:01:33.1]} 22. Bg4 {[%clk 0:01:56.6]} 22...
Bxg4 {[%clk 0:01:03]} 23. hxg4 {[%clk 0:01:57.5]} 23... Qc7 {[%clk 0:00:59.5]}
24. Kf1 {[%clk 0:01:53.9]} 24... Qe7 {[%clk 0:00:58.9]} 25. Ng1 {[%clk
0:01:48.1]} 25... Bd6 {[%clk 0:00:42.9]} 26. Nf3 {[%clk 0:01:45.2]} 26... Bb4
{[%clk 0:00:40.3]} 27. Rd4 {[%clk 0:01:43.4]} 27... Bc5 {[%clk 0:00:37.1]} 28.
R4d3 {[%clk 0:01:42.1]} 28... Bb6 {[%clk 0:00:30.3]} 29. Qc3+ {[%clk 0:01:39.9]}
29... Kh7 {[%clk 0:00:27.2]} 30. Qd2 {[%clk 0:01:35.1]} 30... Rxd3 {[%clk
0:00:21.9]} 31. Qxd3 {[%clk 0:01:33.9]} 31... Rd8 {[%clk 0:00:18.9]} 32. Qe2
{[%clk 0:01:32.2]} 32... Rd6 {[%clk 0:00:15.6]} 33. Rd3 {[%clk 0:01:28.5]} 33...
Qd7 {[%clk 0:00:15.5]} 34. Ne5 {[%clk 0:01:25.9]} 34... Qe6 {[%clk 0:00:07.8]}
35. Rxd6 {[%clk 0:01:24.3]} 35... Qxd6 {[%clk 0:00:08.2]} 36. Nd3 {[%clk
0:01:22.4]} 36... Qd4 {[%clk 0:00:07.6]} 37. Nxf4 {[%clk 0:01:13]} 37... Qa1+
{[%clk 0:00:07.2]} 38. Qe1 {[%clk 0:01:11.8]} 38... Qb2 {[%clk 0:00:07.6]} 39.
c5 {[%clk 0:01:03.1]} 39... Bxc5 {[%clk 0:00:07.5]} 40. Nd3 {[%clk 0:01:01.1]}
40... Qd4 {[%clk 0:00:06.9]} 41. Nxc5 {[%clk 0:00:58.1]} 41... Qxc5 {[%clk
0:00:07.8]} 42. g3 {[%clk 0:00:53.5]} 42... Kg7 {[%clk 0:00:07.2]} 43. Kg2
{[%clk 0:00:50.6]} 43... b6 {[%clk 0:00:06.2]} 44. Qd2 {[%clk 0:00:47]} 44...
Qe5 {[%clk 0:00:06]} 45. Qc2 {[%clk 0:00:39.9]} 45... c5 {[%clk 0:00:06]} 46. f4
{[%clk 0:00:34.6]} 46... Qd4 {[%clk 0:00:06.5]} 47. e5 {[%clk 0:00:33.3]} 47...
Qd5+ {[%clk 0:00:06.2]} 48. Kh3 {[%clk 0:00:31.9]} 48... Qd4 {[%clk 0:00:06.4]}
49. Kh2 {[%clk 0:00:29.3]} 49... Qd5 {[%clk 0:00:06.8]} 50. Qc3 {[%clk 0:00:27]}
50... Qd4 {[%clk 0:00:06.8]} 51. Qf3 {[%clk 0:00:25.6]} 51... Qd2+ {[%clk
0:00:06.1]} 52. Kh3 {[%clk 0:00:24.5]} 52... Qe1 {[%clk 0:00:06.5]} 53. Qc6
{[%clk 0:00:21.5]} 53... Qf1+ {[%clk 0:00:06]} 54. Kh4 {[%clk 0:00:19.3]} 54...
Qf2 {[%clk 0:00:05]} 55. Kh3 {[%clk 0:00:15.4]} 55... Qf1+ {[%clk 0:00:03.8]}
56. Kh2 {[%clk 0:00:14.7]} 56... Qf2+ {[%clk 0:00:03.9]} 57. Qg2 {[%clk
0:00:13.8]} 57... Qxg2+ {[%clk 0:00:04.2]} 58. Kxg2 {[%clk 0:00:14.2]} 58... f6
{[%clk 0:00:05.1]} 59. Kf3 {[%clk 0:00:11.8]} 59... fxe5 {[%clk 0:00:05.1]} 60.
fxe5 {[%clk 0:00:12.4]} 60... Kf7 {[%clk 0:00:05.7]} 61. Kf4 {[%clk 0:00:11]}
61... Ke6 {[%clk 0:00:06.2]} 62. Ke4 {[%clk 0:00:10.6]} 62... g5 {[%clk
0:00:06.7]} 0-1

[Event "*** Titled Tuesday Blitz"]
[Site "Chess.com"]
[Date "2020.11.03"]
[Round "3"]
[White "Kaua18"]
[Black "Alomaterapia"]
[Result "1-0"]
[WhiteElo "2312"]
[BlackElo "2492"]
[TimeControl "180+1"]
[EndTime "10:32:15 PST"]
[Termination "Kaua18 won on time"]

1. e4 {[%clk 0:03:00]} 1... e5 {[%clk 0:02:59.7]} 2. Nf3 {[%clk 0:03:00.2]} 2...
Nc6 {[%clk 0:03:00.2]} 3. Bb5 {[%clk 0:02:59.4]} 3... a6 {[%clk 0:02:59.8]} 4.
Ba4 {[%clk 0:02:58.8]} 4... Nf6 {[%clk 0:03:00.1]} 5. O-O {[%clk 0:02:59]} 5...
Be7 {[%clk 0:02:58.3]} 6. d3 {[%clk 0:02:58.2]} 6... b5 {[%clk 0:02:56.2]} 7.
Bb3 {[%clk 0:02:56.3]} 7... O-O {[%clk 0:02:55.9]} 8. c3 {[%clk 0:02:53.3]} 8...
d6 {[%clk 0:02:40.1]} 9. Re1 {[%clk 0:02:46.4]} 9... Na5 {[%clk 0:02:39.7]} 10.
Bc2 {[%clk 0:02:45.8]} 10... c5 {[%clk 0:02:40.1]} 11. Nbd2 {[%clk 0:02:43]}
11... Nc6 {[%clk 0:02:36.9]} 12. Nf1 {[%clk 0:02:41.9]} 12... Be6 {[%clk
0:02:32.3]} 13. Ng3 {[%clk 0:02:31.3]} 13... Qd7 {[%clk 0:02:31.3]} 14. a4
{[%clk 0:02:30]} 14... h6 {[%clk 0:02:19.6]} 15. h3 {[%clk 0:02:29.1]} 15...
Rfe8 {[%clk 0:02:10.9]} 16. d4 {[%clk 0:02:26.7]} 16... cxd4 {[%clk 0:02:09.7]}
17. cxd4 {[%clk 0:02:27.6]} 17... exd4 {[%clk 0:01:49]} 18. Nxd4 {[%clk
0:02:28.5]} 18... Nxd4 {[%clk 0:01:43.8]} 19. Qxd4 {[%clk 0:02:29.4]} 19... Bxh3
{[%clk 0:01:31.3]} 20. gxh3 {[%clk 0:02:23]} 20... Qxh3 {[%clk 0:01:30.2]} 21.
Bf4 {[%clk 0:02:14.5]} 21... g5 {[%clk 0:01:05.4]} 22. Bxd6 {[%clk 0:02:03.7]}
22... Rad8 {[%clk 0:00:50.9]} 23. e5 {[%clk 0:02:02.9]} 23... Ng4 {[%clk
0:00:50]} 24. Bf5 {[%clk 0:01:41.5]} 24... Qh2+ {[%clk 0:00:49.2]} 25. Kf1
{[%clk 0:01:40.9]} 25... Qh3+ {[%clk 0:00:37.1]} 26. Kg1 {[%clk 0:01:36.5]}
26... Qh2+ {[%clk 0:00:36.9]} 27. Kf1 {[%clk 0:01:36.2]} 27... Qh3+ {[%clk
0:00:37.3]} 28. Ke2 {[%clk 0:00:53.8]} 28... Bxd6 {[%clk 0:00:37.1]} 29. Qxg4
{[%clk 0:00:47.7]} 29... Rxe5+ {[%clk 0:00:35.8]} 30. Kf3 {[%clk 0:00:27.5]}
30... Qxg4+ {[%clk 0:00:24.9]} 31. Bxg4 {[%clk 0:00:25.8]} 31... Rd5 {[%clk
0:00:16.5]} 32. axb5 {[%clk 0:00:24.3]} 32... axb5 {[%clk 0:00:14.9]} 33. Nf5
{[%clk 0:00:24.4]} 33... Bf8 {[%clk 0:00:14.3]} 34. Ra6 {[%clk 0:00:23.5]} 34...
h5 {[%clk 0:00:14.3]} 35. Bh3 {[%clk 0:00:09.8]} 35... Rd3+ {[%clk 0:00:13.8]}
36. Ne3 {[%clk 0:00:08.9]} 36... g4+ {[%clk 0:00:14]} 37. Bxg4 {[%clk
0:00:09.3]} 37... hxg4+ {[%clk 0:00:14.4]} 38. Kxg4 {[%clk 0:00:10]} 38... R3d4+
{[%clk 0:00:14.1]} 39. Kf3 {[%clk 0:00:09.8]} 39... Bg7 {[%clk 0:00:08.4]} 40.
Rg1 {[%clk 0:00:10.1]} 40... Kf8 {[%clk 0:00:07.6]} 41. Ra7 {[%clk 0:00:09.8]}
41... R4d7 {[%clk 0:00:07.4]} 42. Ra5 {[%clk 0:00:09.6]} 42... Bxb2 {[%clk
0:00:07.1]} 43. Rxb5 {[%clk 0:00:09.1]} 43... Bd4 {[%clk 0:00:07.7]} 44. Nf5
{[%clk 0:00:08.2]} 44... Bf6 {[%clk 0:00:07.8]} 45. Rb6 {[%clk 0:00:07.3]} 45...
Rd3+ {[%clk 0:00:06.8]} 46. Kg2 {[%clk 0:00:05.6]} 46... Be5 {[%clk 0:00:06.5]}
47. Re1 {[%clk 0:00:05.5]} 47... f6 {[%clk 0:00:06.3]} 48. Rh1 {[%clk
0:00:04.5]} 48... Kg8 {[%clk 0:00:05.8]} 49. Rb7 {[%clk 0:00:04.6]} 49... R8d7
{[%clk 0:00:05.7]} 50. Rxd7 {[%clk 0:00:02.6]} 50... Rxd7 {[%clk 0:00:05.2]} 51.
Rb1 {[%clk 0:00:03.5]} 51... Kf7 {[%clk 0:00:05.3]} 52. Kf3 {[%clk 0:00:03.4]}
52... Ke6 {[%clk 0:00:05.4]} 53. Ne3 {[%clk 0:00:03]} 53... Rh7 {[%clk 0:00:05]}
54. Rb6+ {[%clk 0:00:03.4]} 54... Kf7 {[%clk 0:00:05.3]} 55. Ke4 {[%clk
0:00:03.9]} 55... Kg6 {[%clk 0:00:05.5]} 56. Ng4 {[%clk 0:00:03.7]} 56... Rh4
{[%clk 0:00:05.6]} 57. Kf3 {[%clk 0:00:04.1]} 57... Rh3+ {[%clk 0:00:05.4]} 58.
Kg2 {[%clk 0:00:04.3]} 58... Rh5 {[%clk 0:00:04.7]} 59. Ne3 {[%clk 0:00:04.2]}
59... Rg5+ {[%clk 0:00:04.3]} 60. Kf3 {[%clk 0:00:04.3]} 60... Kf7 {[%clk
0:00:04.7]} 61. Ke4 {[%clk 0:00:04.6]} 61... Rh5 {[%clk 0:00:04.5]} 62. f4
{[%clk 0:00:04.9]} 62... Rh4 {[%clk 0:00:03.9]} 63. Nd5 {[%clk 0:00:05.3]} 63...
Ba1 {[%clk 0:00:02.8]} 64. Rb7+ {[%clk 0:00:05.6]} 64... Kg6 {[%clk 0:00:02.9]}
65. Ne7+ {[%clk 0:00:04.5]} 65... Kh5 {[%clk 0:00:02.2]} 66. Nf5 {[%clk
0:00:04.6]} 1-0

[Event "*** Titled Tuesday Blitz"]
[Site "Chess.com"]
[Date "2020.11.03"]
[Round "3"]
[White "kingofthenil"]
[Black "TheCairnTerrier"]
[Result "1-0"]
[WhiteElo "2488"]
[BlackElo "2201"]
[TimeControl "180+1"]
[EndTime "10:32:20 PST"]
[Termination "kingofthenil won on time"]

1. e4 {[%clk 0:03:00.9]} 1... c5 {[%clk 0:02:59.7]} 2. d3 {[%clk 0:02:59.4]}
2... e6 {[%clk 0:02:58.2]} 3. g3 {[%clk 0:02:56.8]} 3... Nc6 {[%clk 0:02:54.8]}
4. Bg2 {[%clk 0:02:55.8]} 4... Nf6 {[%clk 0:02:55.2]} 5. f4 {[%clk 0:02:50.9]}
5... d5 {[%clk 0:02:47.3]} 6. Qe2 {[%clk 0:02:44.1]} 6... Nd4 {[%clk 0:02:26.2]}
7. Qd1 {[%clk 0:02:42.2]} 7... dxe4 {[%clk 0:02:14.7]} 8. dxe4 {[%clk
0:02:43.1]} 8... Be7 {[%clk 0:01:51.3]} 9. c3 {[%clk 0:02:39.6]} 9... Nc6 {[%clk
0:01:51.4]} 10. Qxd8+ {[%clk 0:02:40.5]} 10... Bxd8 {[%clk 0:01:51.5]} 11. Be3
{[%clk 0:02:40.5]} 11... Be7 {[%clk 0:01:34.1]} 12. Nh3 {[%clk 0:02:32.1]} 12...
O-O {[%clk 0:01:33.3]} 13. e5 {[%clk 0:02:28.6]} 13... Nd5 {[%clk 0:01:31.7]}
14. Bf2 {[%clk 0:02:28.5]} 14... Bd7 {[%clk 0:01:20.5]} 15. Nd2 {[%clk 0:02:08]}
15... Rfd8 {[%clk 0:01:20.2]} 16. Ne4 {[%clk 0:01:47.7]} 16... b6 {[%clk
0:01:17.9]} 17. O-O {[%clk 0:01:47.8]} 17... Be8 {[%clk 0:01:09.3]} 18. Rfd1
{[%clk 0:01:47.4]} 18... Rac8 {[%clk 0:01:08.5]} 19. a4 {[%clk 0:01:47.3]} 19...
Na5 {[%clk 0:00:58.4]} 20. Bf1 {[%clk 0:00:46.6]} 20... Nb3 {[%clk 0:00:55.3]}
21. Ra2 {[%clk 0:00:37.3]} 21... c4 {[%clk 0:00:54.4]} 22. Be2 {[%clk
0:00:31.8]} 22... h6 {[%clk 0:00:52.4]} 23. Nd2 {[%clk 0:00:21.3]} 23... Nxd2
{[%clk 0:00:49.3]} 24. Rxd2 {[%clk 0:00:21.4]} 24... Nxf4 {[%clk 0:00:48.8]} 25.
Rxd8 {[%clk 0:00:18.1]} 25... Nxe2+ {[%clk 0:00:48.5]} 26. Kf1 {[%clk 0:00:19]}
26... Nxg3+ {[%clk 0:00:47.1]} 27. hxg3 {[%clk 0:00:10.6]} 27... Bxd8 {[%clk
0:00:35]} 28. Nf4 {[%clk 0:00:09.5]} 28... Bc7 {[%clk 0:00:26.8]} 29. Bd4 {[%clk
0:00:08.5]} 29... Bc6 {[%clk 0:00:21.5]} 30. a5 {[%clk 0:00:08.3]} 30... bxa5
{[%clk 0:00:19]} 31. Kf2 {[%clk 0:00:07.5]} 31... Rd8 {[%clk 0:00:17.6]} 32. Ke3
{[%clk 0:00:07.5]} 32... Bb6 {[%clk 0:00:17.6]} 33. Ne2 {[%clk 0:00:06.1]} 33...
f6 {[%clk 0:00:15]} 34. exf6 {[%clk 0:00:01.3]} 34... gxf6 {[%clk 0:00:14.6]}
35. Bxb6 {[%clk 0:00:01.7]} 35... axb6 {[%clk 0:00:14.6]} 36. Nf4 {[%clk
0:00:02.6]} 36... e5 {[%clk 0:00:13.9]} 37. Nh5 {[%clk 0:00:03.1]} 37... Kf7
{[%clk 0:00:13.7]} 38. g4 {[%clk 0:00:03.7]} 38... Rd3+ {[%clk 0:00:12.7]} 39.
Kf2 {[%clk 0:00:04.4]} 39... Rd2+ {[%clk 0:00:11.4]} 40. Ke3 {[%clk 0:00:03.9]}
40... Rg2 {[%clk 0:00:09.7]} 41. Ra1 {[%clk 0:00:04.8]} 41... Rxg4 {[%clk
0:00:08.7]} 42. Rf1 {[%clk 0:00:05.7]} 42... Re4+ {[%clk 0:00:08.2]} 43. Kd2
{[%clk 0:00:05.6]} 43... Rh4 {[%clk 0:00:07.3]} 44. Rxf6+ {[%clk 0:00:04.6]}
44... Ke7 {[%clk 0:00:06.9]} 45. Rxh6 {[%clk 0:00:05.2]} 45... Bf3 {[%clk
0:00:05.4]} 46. Rh7+ {[%clk 0:00:05.3]} 46... Kd6 {[%clk 0:00:04.7]} 47. Nf6
{[%clk 0:00:02.3]} 47... Rxh7 {[%clk 0:00:04.1]} 48. Nxh7 {[%clk 0:00:03.2]}
48... Kc5 {[%clk 0:00:04.4]} 49. Ng5 {[%clk 0:00:03.1]} 49... e4 {[%clk
0:00:04.4]} 50. Ke3 {[%clk 0:00:02.1]} 50... Kb5 {[%clk 0:00:04]} 51. Kd4 {[%clk
0:00:01.6]} 51... Ka4 {[%clk 0:00:02]} 52. Kxc4 {[%clk 0:00:02.5]} 52... b5+
{[%clk 0:00:02]} 53. Kc5 {[%clk 0:00:02.4]} 53... b4 {[%clk 0:00:02.4]} 54. cxb4
{[%clk 0:00:02.5]} 54... axb4 {[%clk 0:00:02.4]} 55. Kc4 {[%clk 0:00:03]} 55...
b3 {[%clk 0:00:02.4]} 56. Kc3 {[%clk 0:00:03.3]} 56... Bd1 {[%clk 0:00:02.3]}
57. Nxe4 {[%clk 0:00:03.3]} 57... Bc2 {[%clk 0:00:03.2]} 58. Nc5+ {[%clk
0:00:03.1]} 58... Ka5 {[%clk 0:00:03]} 59. Ne6 {[%clk 0:00:04]} 59... Kb5 {[%clk
0:00:02.1]} 60. Nd4+ {[%clk 0:00:04.9]} 60... Kb6 {[%clk 0:00:02.1]} 61. Nf3
{[%clk 0:00:05.8]} 61... Kc6 {[%clk 0:00:02]} 62. Nd2 {[%clk 0:00:06.7]} 62...
Kb6 {[%clk 0:00:02.4]} 63. Nc4+ {[%clk 0:00:07.5]} 63... Kc6 {[%clk 0:00:02.8]}
64. Kb4 {[%clk 0:00:08.4]} 64... Kb7 {[%clk 0:00:02.4]} 65. Na5+ {[%clk
0:00:09.3]} 65... Kb6 {[%clk 0:00:02.3]} 66. Nc4+ {[%clk 0:00:07.8]} 66... Kc6
{[%clk 0:00:02]} 67. Ne3 {[%clk 0:00:08.7]} 67... Kb6 {[%clk 0:00:01.9]} 68. Kc4
{[%clk 0:00:09.6]} 68... Kc6 {[%clk 0:00:01.4]} 69. Ng4 {[%clk 0:00:08.5]} 69...
Kb6 {[%clk 0:00:01.5]} 70. Ne5 {[%clk 0:00:08.5]} 70... Ka5 {[%clk 0:00:01.4]}
71. Kc5 {[%clk 0:00:08.5]} 71... Ka6 {[%clk 0:00:01.5]} 72. Nc4 {[%clk
0:00:08.5]} 1-0

[Event "*** Titled Tuesday Blitz"]
[Site "Chess.com"]
[Date "2020.11.03"]
[Round "3"]
[White "Baby_Legs"]
[Black "AryanTari"]
[Result "1-0"]
[WhiteElo "2692"]
[BlackElo "2892"]
[TimeControl "180+1"]
[EndTime "10:32:28 PST"]
[Termination "Baby_Legs won on time"]

1. Nf3 {[%clk 0:03:00.5]} 1... d5 {[%clk 0:02:59.4]} 2. e3 {[%clk 0:02:59.8]}
2... Nf6 {[%clk 0:02:58]} 3. c4 {[%clk 0:03:00]} 3... e6 {[%clk 0:02:58.5]} 4.
b3 {[%clk 0:02:57.2]} 4... Bd6 {[%clk 0:02:55.5]} 5. Bb2 {[%clk 0:02:57.2]} 5...
O-O {[%clk 0:02:56.1]} 6. Nc3 {[%clk 0:02:52.6]} 6... b6 {[%clk 0:02:54.7]} 7.
cxd5 {[%clk 0:02:51.4]} 7... exd5 {[%clk 0:02:54.5]} 8. d4 {[%clk 0:02:51.5]}
8... Bb7 {[%clk 0:02:52.3]} 9. Bd3 {[%clk 0:02:48.4]} 9... a6 {[%clk 0:02:48.9]}
10. O-O {[%clk 0:02:45.6]} 10... Re8 {[%clk 0:02:49.4]} 11. Rc1 {[%clk
0:02:44.2]} 11... Nbd7 {[%clk 0:02:49.4]} 12. Rc2 {[%clk 0:02:43.1]} 12... Ne4
{[%clk 0:02:42.3]} 13. Ne2 {[%clk 0:02:34.4]} 13... a5 {[%clk 0:02:06.6]} 14. a4
{[%clk 0:02:29.2]} 14... c5 {[%clk 0:01:58]} 15. dxc5 {[%clk 0:02:24.7]} 15...
Ndxc5 {[%clk 0:01:58.4]} 16. Bb5 {[%clk 0:02:16.1]} 16... Re6 {[%clk 0:01:58.4]}
17. Ned4 {[%clk 0:02:13.6]} 17... Rg6 {[%clk 0:01:54.5]} 18. g3 {[%clk
0:01:47.2]} 18... Bf8 {[%clk 0:01:44.9]} 19. Ne5 {[%clk 0:01:44.8]} 19... Rh6
{[%clk 0:01:38.6]} 20. Qg4 {[%clk 0:01:41.5]} 20... Bc8 {[%clk 0:01:34.7]} 21.
Qe2 {[%clk 0:01:34.3]} 21... Bd6 {[%clk 0:01:20.3]} 22. Ndc6 {[%clk 0:01:32.8]}
22... Qf8 {[%clk 0:01:11.7]} 23. Rd1 {[%clk 0:01:32.3]} 23... Be6 {[%clk
0:01:10.7]} 24. Nd3 {[%clk 0:01:01.9]} 24... Nxb3 {[%clk 0:01:08]} 25. Nf4
{[%clk 0:01:02.2]} 25... Nbc5 {[%clk 0:01:01.8]} 26. Nxd5 {[%clk 0:01:00.4]}
26... Bxd5 {[%clk 0:00:53.5]} 27. Rxd5 {[%clk 0:01:01.3]} 27... Rc8 {[%clk
0:00:45.1]} 28. Rf5 {[%clk 0:01:00]} 28... Rg6 {[%clk 0:00:35.4]} 29. Ne5 {[%clk
0:00:57.2]} 29... Bxe5 {[%clk 0:00:34.3]} 30. Bxe5 {[%clk 0:00:57]} 30... Qe7
{[%clk 0:00:27.5]} 31. Bd4 {[%clk 0:00:40.3]} 31... Rf8 {[%clk 0:00:14]} 32. Re5
{[%clk 0:00:36.9]} 32... Qb7 {[%clk 0:00:12.1]} 33. f3 {[%clk 0:00:35.1]} 33...
Ng5 {[%clk 0:00:12.4]} 34. e4 {[%clk 0:00:35.5]} 34... Nge6 {[%clk 0:00:11.4]}
35. Be3 {[%clk 0:00:33.7]} 35... Nd7 {[%clk 0:00:10.9]} 36. Rd5 {[%clk
0:00:33.1]} 36... Nf6 {[%clk 0:00:11.3]} 37. Rf5 {[%clk 0:00:32.6]} 37... Nxe4
{[%clk 0:00:09.8]} 38. fxe4 {[%clk 0:00:32.2]} 38... Qxe4 {[%clk 0:00:10.7]} 39.
Rf1 {[%clk 0:00:30.3]} 39... Qb7 {[%clk 0:00:08.9]} 40. Bc4 {[%clk 0:00:29.8]}
40... Re8 {[%clk 0:00:07.2]} 41. Qf2 {[%clk 0:00:29.3]} 41... Rf6 {[%clk
0:00:06.7]} 42. Qe1 {[%clk 0:00:27.5]} 42... Ng5 {[%clk 0:00:05.3]} 43. Bxg5
{[%clk 0:00:22.1]} 43... Rxe1 {[%clk 0:00:04.9]} 44. Rxe1 {[%clk 0:00:22.9]}
44... h6 {[%clk 0:00:03.1]} 45. Bxf6 {[%clk 0:00:22.6]} 45... gxf6 {[%clk
0:00:04]} 46. Bf1 {[%clk 0:00:21.4]} 46... Kg7 {[%clk 0:00:03.2]} 47. Rf2 {[%clk
0:00:21.4]} 47... Qc6 {[%clk 0:00:03.3]} 48. Bb5 {[%clk 0:00:21.6]} 48... Qc3
{[%clk 0:00:03]} 49. Ref1 {[%clk 0:00:21.5]} 49... Qd4 {[%clk 0:00:03.7]} 50.
Kg2 {[%clk 0:00:21.3]} 50... Qd5+ {[%clk 0:00:04]} 51. Rf3 {[%clk 0:00:21.8]}
51... h5 {[%clk 0:00:04.4]} 52. h4 {[%clk 0:00:21.3]} 52... Qd2+ {[%clk
0:00:04.8]} 53. R1f2 {[%clk 0:00:21]} 53... Qd5 {[%clk 0:00:05.4]} 54. Kh2
{[%clk 0:00:21.5]} 54... Qd4 {[%clk 0:00:02.8]} 55. Rxf6 {[%clk 0:00:21.2]}
55... Kg8 {[%clk 0:00:02.4]} 56. R6f5 {[%clk 0:00:21.1]} 56... Qe4 {[%clk
0:00:01.1]} 57. Rxf7 {[%clk 0:00:20.8]} 57... Qe3 {[%clk 0:00:01.5]} 58. R7f5
{[%clk 0:00:20.8]} 58... Qd4 {[%clk 0:00:01.5]} 59. Rg5+ {[%clk 0:00:20.9]}
59... Kh8 {[%clk 0:00:02.2]} 60. Rxh5+ {[%clk 0:00:21.8]} 60... Kg7 {[%clk
0:00:03.1]} 61. Rg5+ {[%clk 0:00:22.1]} 61... Kh6 {[%clk 0:00:03.9]} 62. Rgf5
{[%clk 0:00:22.3]} 62... Qe3 {[%clk 0:00:03.8]} 63. Be2 {[%clk 0:00:20.8]} 63...
Qd4 {[%clk 0:00:02.8]} 64. R5f4 {[%clk 0:00:20.9]} 64... Qc5 {[%clk 0:00:02.7]}
65. g4 {[%clk 0:00:21.4]} 65... Qe5 {[%clk 0:00:02.4]} 66. g5+ {[%clk
0:00:21.6]} 66... Kg6 {[%clk 0:00:02.9]} 67. Kg3 {[%clk 0:00:21.7]} 67... Qe3+
{[%clk 0:00:03.2]} 68. Bf3 {[%clk 0:00:21.2]} 68... Qc3 {[%clk 0:00:03.1]} 69.
Kg4 {[%clk 0:00:21.2]} 69... Qc8+ {[%clk 0:00:03]} 70. Kg3 {[%clk 0:00:21.4]}
70... Qc7 {[%clk 0:00:03.5]} 71. Be4+ {[%clk 0:00:21.1]} 71... Kg7 {[%clk
0:00:03.8]} 72. h5 {[%clk 0:00:20.7]} 72... Qe5 {[%clk 0:00:03.9]} 73. Kg4
{[%clk 0:00:20.4]} 73... Qe6+ {[%clk 0:00:03.8]} 74. Bf5 {[%clk 0:00:20.8]}
74... Qe1 {[%clk 0:00:03.9]} 75. h6+ {[%clk 0:00:21.1]} 75... Kh8 {[%clk
0:00:04.4]} 76. Be4 {[%clk 0:00:20.6]} 76... Qg1+ {[%clk 0:00:03.9]} 77. Kf5
{[%clk 0:00:20.9]} 77... Qc1 {[%clk 0:00:03.9]} 78. Kg6 {[%clk 0:00:20.6]} 1-0